fUST/lending_fUST_20250901
["ID","MTS","AMOUNT","RATE_DAILY","PERIOD"]
[382679510,1756707267175,10000.01,0.00013926,2]
[382679511,1756707267202,10000.01,0.00013926,2]
[382679512,1756707267232,10000.01,0.00013926,2]
[382679513,1756707267464,10000.01,0.00013926,2]
[382679514,1756707267490,10000.01,0.00013926,2]
[382679515,1756707267515,10000.01,0.00013926,2]
[382679516,1756707267540,10000.01,0.00013926,2]
[382679517,1756707267566,10000.01,0.00013926,2]
[382679518,1756707267591,10000.01,0.00013926,2]
[382679519,1756707267618,10000.01,0.00013926,2]
[382679520,1756707267645,10000.01,0.00013926,2]
[382679521,1756707267671,10000.01,0.00013926,2]
[382679522,1756707267696,10000.01,0.00013926,2]
[382679523,1756707267724,10000.01,0.00013926,2]
[382679524,1756707267748,3332.7197212,0.00013926,2]
[382679525,1756707272351,1200.0,0.00013883,2]
[382679526,1756707288769,1200.0,0.00013883,2]
[382679527,1756707297346,1200.0,0.00013883,2]
[382679528,1756707314048,3000.0,0.00013883,2]
[382679529,1756707325619,67.2902788,0.00013883,2]
[382679530,1756707325645,2932.7097212,0.00013883,2]
[382679531,1756707349379,3000.0,0.00013883,2]
[382679532,1756707351087,4067.3002788,0.0001391,2]
[382679533,1756707351112,3767.27371234,0.0001391,2]
[382679534,1756707358123,3000.0,0.00013883,2]
[382679535,1756707375709,300.0,0.00013882,2]
[382679536,1756707384237,300.0,0.00013882,2]
[382679537,1756707400661,300.0,0.00013882,2]
[382679538,1756707409486,300.0,0.00013882,2]
[382679539,1756707423779,3925.44,0.00025,30]
[382679540,1756707425993,2032.73628766,0.00013883,2]
[382679541,1756707426021,10000.01,0.00013883,2]
[382679542,1756707426048,10000.01,0.00013883,2]
[382679543,1756707426077,65.69864103,0.00013883,2]
[382679544,1756707434552,1200.0,0.00013882,2]
[382679545,1756707441558,8734.31135897,0.0001391,2]
[382679546,1756707441585,10000.01,0.0001391,2]
[382679547,1756707441610,10000.01,0.0001391,2]
[382679548,1756707441636,10000.01,0.0001391,2]
[382679549,1756707441662,10000.01,0.0001391,2]
[382679550,1756707441689,10000.01,0.0001391,2]
[382679551,1756707441714,10000.01,0.0001391,2]
[382679552,1756707441740,10000.01,0.0001391,2]
[382679553,1756707441769,10000.01,0.0001391,2]
[382679554,1756707441794,10000.01,0.0001391,2]
[382679555,1756707441819,10000.01,0.0001391,2]
[382679556,1756707441844,10000.01,0.0001391,2]
[382679557,1756707441868,2137.8258997,0.0001391,2]
[382679558,1756707459486,1200.0,0.00013882,2]
[382679559,1756707480587,6662.1841003,0.00013026,2]
[382679560,1756707480614,3337.8158997,0.00013026,2]
[382679561,1756707483539,900.0,0.00013882,2]
[382679562,1756707507920,1200.0,0.00013882,2]
[382679563,1756707533158,1200.0,0.00013882,2]
[382679564,1756707542812,1428.799987,0.00013602,2]
[382679565,1756707543288,1269.97227585,0.00013603,2]
[382679566,1756707543931,562.281937,0.00013604,2]
[382679567,1756707547535,101.13990045,0.00012329,2]
[382679568,1756707547564,1283.70009955,0.00012329,2]
[382679569,1756707557934,1200.0,0.00013882,2]
[382679570,1756707558236,1154.03,0.00012329,2]
[382679571,1756707568653,961.69,0.00012329,2]
[382679572,1756707579040,801.41,0.00012329,2]
[382679573,1756707583101,1200.0,0.00013882,2]
[382679576,1756707589442,667.84,0.00012329,2]
[382679577,1756707599842,556.54,0.00012329,2]
[382679578,1756707607356,2174.79990045,0.00013882,2]
[382679579,1756707607388,825.20009955,0.00013882,2]
[382679580,1756707610277,463.78,0.00012329,2]
[382679581,1756707620929,386.48,0.00012329,2]
[382679582,1756707631656,322.07,0.00012329,2]
[382679583,1756707631958,8002.47990045,0.00013877,2]
[382679584,1756707631986,7487.5588721,0.00013877,2]
[382679587,1756707641995,268.39,0.00012329,2]
[382679588,1756707650980,2244.0611279,0.00013927,2]
[382679589,1756707651007,185.6183005,0.00013927,2]
[382679590,1756707652542,223.66,0.00012329,2]
[382679591,1756707656929,659.93001704,0.00013877,2]
[382679592,1756707662601,1500.0,0.00030598,60]
[382679593,1756707663219,186.38,0.00012329,2]
[382679594,1756707670661,2097.33,0.00025,30]
[382679595,1756707673875,155.32,0.00012329,2]
[382679597,1756707684566,776.63,0.00012329,2]
[382679598,1756707753149,954.309643,0.00013699,2]
[382679600,1756707837405,151.0,0.00014,2]
[382679610,1756707893889,446.21709511,0.00013684,2]
[382679614,1756707979908,168.572007,0.00013019,2]
[382679616,1756707997016,1943.74354272,0.00013926,2]
[382679617,1756708008994,1086.00277617,0.00013684,2]
[382679619,1756708065142,284.5247216,0.00013699,2]
[382679641,1756708197803,412.85657415,0.00013684,2]
[382679642,1756708199969,1649.7748703,0.00013684,2]
[382679669,1756708231812,-1200.0,0.00014015,2]
[382679671,1756708231822,-300.0,0.00014015,2]
[382679673,1756708231831,-300.0,0.00014015,2]
[382679676,1756708231842,-300.0,0.00014015,2]
[382679677,1756708231851,-1200.0,0.00014015,2]
[382679679,1756708231861,-480.0,0.00014015,2]
[382679681,1756708231870,-480.0,0.00014015,2]
[382679683,1756708231879,-480.0,0.00014015,2]
[382679685,1756708231888,-480.0,0.00014015,2]
[382679688,1756708231897,-482.87999591,0.00014015,2]
[382679691,1756708231906,-209.40437684,0.00014016,2]
[382679692,1756708231915,-151.0,0.00014016,2]
[382679695,1756708231928,-250.0,0.00014016,2]
[382679698,1756708231937,-151.0,0.00014016,2]
[382679701,1756708231947,-151.0,0.00014016,2]
[382679704,1756708231956,-250.0,0.00014016,2]
[382679706,1756708231967,-151.0,0.00014016,2]
[382679707,1756708231976,-151.0,0.00014016,2]
[382679709,1756708231986,-250.0,0.00014016,2]
[382679711,1756708231996,-151.0,0.00014016,2]
[382679713,1756708232005,-151.0,0.00014016,2]
[382679715,1756708232015,-250.0,0.00014016,2]
[382679717,1756708232024,-151.0,0.00014016,2]
[382679718,1756708232033,-151.0,0.00014016,2]
[382679719,1756708232042,-250.0,0.00014016,2]
[382679720,1756708232052,-151.0,0.00014016,2]
[382679721,1756708232061,-151.0,0.00014016,2]
[382679722,1756708232071,-250.0,0.00014016,2]
[382679723,1756708232080,-151.0,0.00014016,2]
[382679724,1756708232089,-151.0,0.00014016,2]
[382679725,1756708232099,-151.0,0.00014016,2]
[382679726,1756708232108,-151.0,0.00014016,2]
[382679727,1756708232118,-250.0,0.00014016,2]
[382679728,1756708232128,-151.0,0.00014016,2]
[382679729,1756708232137,-290.68279446,0.00014016,2]
[382679730,1756708232147,-151.0,0.00014016,2]
[382679731,1756708232156,-151.0,0.00014016,2]
[382679732,1756708232166,-250.0,0.00014016,2]
[382679733,1756708232175,-151.0,0.00014016,2]
[382679734,1756708232184,-151.0,0.00014016,2]
[382679735,1756708232194,-250.0,0.00014016,2]
[382679736,1756708232203,-151.0,0.00014016,2]
[382679737,1756708232213,-151.0,0.00014016,2]
[382679738,1756708232222,-151.0,0.00014016,2]
[382679739,1756708232232,-213.65494024,0.00014016,2]
[382679740,1756708232241,-279.64108001,0.00014016,2]
[382679741,1756708232250,-151.0,0.00014016,2]
[382679742,1756708232259,-151.0,0.00014016,2]
[382679743,1756708232269,-151.0,0.00014016,2]
[382679744,1756708232278,-151.0,0.00014016,2]
[382679745,1756708232287,-151.0,0.00014016,2]
[382679746,1756708232299,-151.0,0.00014016,2]
[382679747,1756708232308,-151.0,0.00014016,2]
[382679748,1756708232319,-238.5181711,0.00014016,2]
[382679749,1756708232328,-151.0,0.00014016,2]
[382679750,1756708232338,-1000.0,0.00014016,2]
[382679751,1756708232349,-151.0,0.00014016,2]
[382679752,1756708232359,-1000.0,0.00014016,2]
[382679753,1756708232370,-1000.0,0.00014016,2]
[382679754,1756708232379,-1000.0,0.00014016,2]
[382679755,1756708232390,-1000.0,0.00014016,2]
[382679756,1756708232400,-1000.0,0.00014016,2]
[382679757,1756708232410,-1000.0,0.00014016,2]
[382679758,1756708232419,-501.89628986,0.00014016,2]
[382679759,1756708232429,-1000.0,0.00014016,2]
[382679760,1756708232439,-7977.04702842,0.00014016,2]
[382679761,1756708232449,-305.8465282,0.00014016,2]
[382679762,1756708232459,-480.0,0.00014016,2]
[382679763,1756708232469,-632.69,0.00014016,2]
[382679764,1756708232479,-480.0,0.00014016,2]
[382679765,1756708232489,-1055.21,0.00014016,2]
[382679766,1756708232498,-480.0,0.00014016,2]
[382679767,1756708232507,-480.0,0.00014016,2]
[382679768,1756708232518,-480.0,0.00014016,2]
[382679769,1756708232527,-497.14,0.00014016,2]
[382679770,1756708232537,-2200.47,0.00014016,2]
[382679771,1756708232547,-480.62,0.00014016,2]
[382679772,1756708232557,-480.0,0.00014016,2]
[382679773,1756708232567,-480.0,0.00014016,2]
[382679774,1756708232578,-480.0,0.00014016,2]
[382679775,1756708232588,-497.06,0.00014016,2]
[382679776,1756708232597,-480.0,0.00014016,2]
[382679777,1756708232607,-1254.6,0.00014016,2]
[382679778,1756708232616,-1047.64,0.00014016,2]
[382679779,1756708232625,-480.0,0.00014016,2]
[382679780,1756708232637,-908.0,0.00014016,2]
[382679781,1756708232649,-480.0,0.00014016,2]
[382679782,1756708232659,-1316.76,0.00014016,2]
[382679783,1756708232670,-604.58,0.00014016,2]
[382679784,1756708232682,-480.0,0.00014016,2]
[382679785,1756708232692,-480.0,0.00014016,2]
[382679786,1756708232701,-669.69,0.00014016,2]
[382679787,1756708232712,-480.0,0.00014016,2]
[382679788,1756708232721,-500.0,0.00014018,2]
[382679789,1756708232731,-500.0,0.00014021,2]
[382679790,1756708232741,-314.08144696,0.00014021,2]
[382679791,1756708232979,-185.91855304,0.00014021,2]
[382679792,1756708232990,-500.0,0.00014021,2]
[382679793,1756708233003,-500.0,0.00014021,2]
[382679794,1756708233013,-315.08144696,0.00014021,2]
[382679795,1756708233054,-184.91855304,0.00014021,2]
[382679796,1756708233063,-244.15018391,0.00014021,2]
[382679807,1756708237816,-484.14517083,0.00014015,2]
[382679808,1756708237826,-963.21993475,0.00014016,2]
[382679809,1756708237836,-480.0,0.00014016,2]
[382679810,1756708237845,-500.0,0.00014017,2]
[382679811,1756708237854,-500.0,0.00014017,2]
[382679812,1756708237864,-545.0741667,0.00014017,2]
[382679813,1756708237873,-500.0,0.00014017,2]
[382679814,1756708237883,-500.0,0.00014017,2]
[382679815,1756708237892,-500.0,0.00014017,2]
[382679816,1756708237901,-500.0,0.00014017,2]
[382679817,1756708237911,-500.0,0.00014017,2]
[382679818,1756708237922,-16.6723166,0.00014017,2]
[382679819,1756708237946,-268.61921822,0.00014017,2]
[382679960,1756708239910,715.47045241,0.00013926,2]
[382679963,1756708239939,284.52954759,0.00013926,2]
[382680538,1756708245927,-502.0,0.00014015,2]
[382680541,1756708245940,-284.31152435,0.00014015,2]
[382680549,1756708246025,-147.05847565,0.00014015,2]
[382680551,1756708246034,-1892.37,0.00014016,2]
[382680553,1756708246043,-526.37,0.00014016,2]
[382680555,1756708246053,-214.70846518,0.00014017,2]
[382680557,1756708246063,-500.0,0.00014017,2]
[382680559,1756708246072,-342.38999814,0.00014017,2]
[382680561,1756708246082,-500.0,0.00014017,2]
[382680563,1756708246091,-500.0,0.00014017,2]
[382680565,1756708246101,-500.0,0.00014017,2]
[382680567,1756708246110,-263.58590762,0.00014017,2]
[382680569,1756708246120,-500.0,0.00014017,2]
[382680571,1756708246130,-500.0,0.00014017,2]
[382680572,1756708246140,-282.6363497,0.00014017,2]
[382680574,1756708246149,-500.0,0.00014017,2]
[382680576,1756708246159,-500.0,0.00014017,2]
[382680578,1756708246168,-341.56772875,0.00014017,2]
[382680580,1756708246177,-502.22318857,0.00014017,2]
[382680582,1756708246189,-500.0,0.00014017,2]
[382680584,1756708246198,-273.80125288,0.00014017,2]
[382680586,1756708246207,-168.54693439,0.00014017,2]
[382680588,1756708246216,-500.0,0.00014017,2]
[382680590,1756708246226,-500.0,0.00014017,2]
[382680592,1756708246235,-500.0,0.00014017,2]
[382680594,1756708246244,-500.0,0.00014017,2]
[382680596,1756708246253,-500.0,0.00014017,2]
[382680598,1756708246263,-500.0,0.00014017,2]
[382680600,1756708246272,-500.0,0.00014017,2]
[382680602,1756708246282,-500.0,0.00014017,2]
[382680604,1756708246291,-500.0,0.00014017,2]
[382680606,1756708246300,-500.0,0.00014017,2]
[382680608,1756708246310,-500.0,0.00014017,2]
[382680610,1756708246319,-500.0,0.00014017,2]
[382680612,1756708246328,-500.0,0.00014017,2]
[382680614,1756708246338,-500.0,0.00014017,2]
[382680616,1756708246347,-500.0,0.00014017,2]
[382680618,1756708246356,-500.0,0.00014017,2]
[382680620,1756708246365,-500.0,0.00014017,2]
[382680622,1756708246375,-500.0,0.00014017,2]
[382680624,1756708246385,-500.0,0.00014017,2]
[382680626,1756708246394,-500.0,0.00014017,2]
[382680628,1756708246403,-500.0,0.00014017,2]
[382680630,1756708246413,-500.0,0.00014017,2]
[382680632,1756708246423,-500.0,0.00014017,2]
[382680634,1756708246431,-500.0,0.00014017,2]
[382680636,1756708246444,-500.0,0.00014017,2]
[382680638,1756708246453,-500.0,0.00014017,2]
[382680640,1756708246462,-500.0,0.00014017,2]
[382680642,1756708246471,-500.0,0.00014017,2]
[382680644,1756708246480,-500.0,0.00014017,2]
[382680646,1756708246490,-255.84981609,0.00014021,2]
[382680648,1756708246499,-500.0,0.00014021,2]
[382680650,1756708246508,-500.0,0.00014021,2]
[382680652,1756708246518,-500.0,0.00014021,2]
[382680654,1756708246527,-500.0,0.00014021,2]
[382680656,1756708246537,-500.0,0.00014021,2]
[382680657,1756708246546,-500.0,0.00014021,2]
[382680659,1756708246555,-500.0,0.00014021,2]
[382680661,1756708246565,-500.0,0.00014021,2]
[382680663,1756708246574,-500.0,0.00014021,2]
[382680665,1756708246583,-500.0,0.00014021,2]
[382680667,1756708246593,-169.54682348,0.00014021,2]
[382680669,1756708246602,-500.0,0.00014021,2]
[382680671,1756708246611,-500.0,0.00014021,2]
[382680673,1756708246620,-500.0,0.00014021,2]
[382680675,1756708246630,-500.0,0.00014021,2]
[382680677,1756708246639,-500.0,0.00014021,2]
[382680679,1756708246648,-500.0,0.00014021,2]
[382680681,1756708246658,-250.0,0.00014021,2]
[382680683,1756708246667,-480.0,0.00014022,2]
[382680685,1756708246677,-480.0,0.00014022,2]
[382680687,1756708246687,-480.0,0.00014022,2]
[382680689,1756708246696,-405.33266599,0.00014022,2]
[382680691,1756708246706,-480.0,0.00014022,2]
[382680693,1756708246716,-480.0,0.00014022,2]
[382680695,1756708246726,-607.5,0.00014022,2]
[382680697,1756708246736,-928.95,0.00014022,2]
[382680699,1756708246745,-945.6,0.00014022,2]
[382680701,1756708246755,-653.19,0.00014022,2]
[382680703,1756708246764,-480.0,0.00014022,2]
[382680705,1756708246773,-480.0,0.00014022,2]
[382680707,1756708246783,-480.0,0.00014022,2]
[382680709,1756708246792,-480.0,0.00014022,2]
[382680710,1756708246801,-1326.72349952,0.00014022,2]
[382683041,1756708271723,349.0382388,0.00030604,60]
[382686602,1756708311785,340.72687031,0.00013684,2]
[382686638,1756708330823,3917.83764848,0.00013922,2]
[382686639,1756708338330,1712.57946508,0.00013926,2]
[382686657,1756708390676,470.21261489,0.00013921,2]
[382686674,1756708491121,100000.0,0.00030604,60]
[382686677,1756708500141,332.2605282,0.00013684,2]
[382686678,1756708502372,1327.7130707,0.00013684,2]
[382686687,1756708611038,1614.15025475,0.00013017,2]
[382686688,1756708611065,956.18131335,0.00013017,2]
[382686694,1756708679987,1370.06357204,0.00013924,2]
[382686698,1756708718425,906.59416,0.00013699,2]
[382686703,1756708745523,195.79572,0.00013594,2]
[382686704,1756708745965,582.05272941,0.00013595,2]
[382686709,1756708882516,3428.10794242,0.00013915,2]
[382686711,1756709023112,2310.89057184,0.00013924,2]
[382686712,1756709105992,3000.0,0.00025,30]
[382686714,1756709218484,250.32399094,0.00013684,2]
[382686715,1756709218515,21.51742998,0.00013684,2]
[382686716,1756709244112,154.0,0.00014,2]
[382686717,1756709244884,154.0,0.00014,2]
[382686719,1756709297171,155.0,0.00025,31]
[382686720,1756709306434,155.0,0.00025,31]
[382686721,1756709365713,1848.71245748,0.00013921,2]
[382686722,1756709382809,221.1394596,0.00013699,2]
[382686735,1756709432078,-151.0,0.00014007,2]
[382686743,1756709432382,-151.0,0.00014007,2]
[382686744,1756709432404,-151.0,0.00014007,2]
[382686745,1756709432413,-17.21261488,0.00014007,2]
[382686755,1756709437922,-135.03286235,0.00014007,2]
[382686756,1756709437932,-184.96713765,0.00014011,2]
[382686757,1756709438061,-115.03286235,0.00014011,2]
[382686758,1756709438071,-300.0,0.00014011,2]
[382686759,1756709438083,-1200.0,0.00014011,2]
[382686760,1756709438093,-900.0,0.00014012,2]
[382686761,1756709438103,-480.0,0.00014012,2]
[382686763,1756709438113,-480.0,0.00014012,2]
[382686764,1756709438122,-480.0,0.00014012,2]
[382686765,1756709438132,-487.0871833,0.00014012,2]
[382686766,1756709438141,-611.35813206,0.00014012,2]
[382686767,1756709438152,-500.0,0.00014012,2]
[382686768,1756709438163,-420.29292774,0.00014012,2]
[382686769,1756709438173,-195.95398973,0.00014012,2]
[382686770,1756709438183,-185.39410382,0.00014012,2]
[382686771,1756709438193,-500.0,0.00014012,2]
[382686772,1756709438202,-480.0,0.00014013,2]
[382686773,1756709438212,-400.0,0.00014013,2]
[382686774,1756709438221,-480.0,0.00014013,2]
[382686775,1756709438231,-480.0,0.00014013,2]
[382686776,1756709438242,-480.0,0.00014013,2]
[382686777,1756709438252,-480.0,0.00014013,2]
[382686778,1756709438264,-928.96,0.00014013,2]
[382686779,1756709438274,-480.0,0.00014013,2]
[382686780,1756709438284,-480.0,0.00014013,2]
[382686781,1756709438294,-480.0,0.00014013,2]
[382686782,1756709438304,-480.0,0.00014013,2]
[382686783,1756709438314,-1084.71,0.00014013,2]
[382686784,1756709438324,-480.0,0.00014013,2]
[382686785,1756709438334,-176.92287843,0.00014013,2]
[382686786,1756709438343,-485.02533006,0.00014013,2]
[382686787,1756709438353,-480.0,0.00014013,2]
[382686788,1756709438362,-486.25676535,0.00014013,2]
[382686789,1756709438372,-480.0,0.00014013,2]
[382686790,1756709438382,-521.33,0.00014013,2]
[382686791,1756709438391,-480.0,0.00014013,2]
[382686792,1756709438400,-480.0,0.00014013,2]
[382686793,1756709438409,-480.0,0.00014013,2]
[382686794,1756709438418,-480.0,0.00014013,2]
[382686795,1756709438428,-480.0,0.00014013,2]
[382686796,1756709438437,-1242.55,0.00014013,2]
[382686797,1756709438446,-661.65,0.00014013,2]
[382686798,1756709438455,-482.73617459,0.00014013,2]
[382686799,1756709438464,-480.0,0.00014013,2]
[382686800,1756709438474,-480.0,0.00014013,2]
[382686801,1756709438483,-480.0,0.00014013,2]
[382686802,1756709438492,-480.0,0.00014013,2]
[382686803,1756709438501,-480.0,0.00014013,2]
[382686804,1756709438510,-481.36057341,0.00014013,2]
[382686805,1756709438519,-496.43,0.00014013,2]
[382686806,1756709438529,-480.0,0.00014013,2]
[382686807,1756709438539,-494.09355426,0.00014013,2]
[382686808,1756709438549,-480.0,0.00014013,2]
[382686809,1756709438560,-482.37365407,0.00014013,2]
[382686810,1756709438570,-480.0,0.00014013,2]
[382686811,1756709438579,-480.0,0.00014013,2]
[382686812,1756709438589,-480.0,0.00014013,2]
[382686813,1756709438599,-352.57267807,0.00014013,2]
[382686814,1756709438609,-500.0,0.00014013,2]
[382686815,1756709438619,-500.0,0.00014013,2]
[382686816,1756709438629,-480.0,0.00014013,2]
[382686817,1756709438638,-480.0,0.00014013,2]
[382686818,1756709438648,-500.0,0.00014013,2]
[382686819,1756709438658,-500.0,0.00014013,2]
[382686820,1756709438667,-500.0,0.00014013,2]
[382686821,1756709438676,-500.0,0.00014013,2]
[382686822,1756709438686,-500.0,0.00014013,2]
[382686823,1756709438696,-500.0,0.00014013,2]
[382686824,1756709438705,-500.0,0.00014013,2]
[382686825,1756709438715,-500.0,0.00014013,2]
[382686826,1756709438724,-480.0,0.00014013,2]
[382686827,1756709438733,-480.0,0.00014013,2]
[382686828,1756709438742,-516.47661945,0.00014013,2]
[382686829,1756709438752,-505.05,0.00014013,2]
[382686830,1756709438761,-500.0,0.00014013,2]
[382686831,1756709438770,-500.0,0.00014013,2]
[382686832,1756709438783,-500.0,0.00014013,2]
[382686833,1756709438792,-343.68277644,0.00014013,2]
[382686834,1756709438802,-480.0,0.00014013,2]
[382686835,1756709438811,-480.0,0.00014013,2]
[382686836,1756709438820,-550.47,0.00014013,2]
[382686837,1756709438830,-1886.77,0.00014013,2]
[382686838,1756709438839,-1094.83,0.00014013,2]
[382686839,1756709438848,-480.0,0.00014013,2]
[382686840,1756709438857,-480.0,0.00014013,2]
[382686841,1756709438867,-1706.96,0.00014013,2]
[382686842,1756709438877,-940.01,0.00014013,2]
[382686843,1756709438886,-480.0,0.00014013,2]
[382686844,1756709438896,-480.0,0.00014013,2]
[382686845,1756709438906,-480.0,0.00014013,2]
[382686846,1756709438915,-1306.42,0.00014013,2]
[382686847,1756709438925,-480.0,0.00014013,2]
[382686848,1756709438934,-601.99,0.00014013,2]
[382686849,1756709438944,-480.0,0.00014013,2]
[382686850,1756709438953,-480.0,0.00014013,2]
[382686851,1756709438962,-480.0,0.00014013,2]
[382686852,1756709438972,-480.0,0.00014013,2]
[382686853,1756709438981,-665.68,0.00014013,2]
[382686854,1756709438991,-480.0,0.00014013,2]
[382686855,1756709439000,-480.0,0.00014013,2]
[382686856,1756709439009,-480.0,0.00014014,2]
[382686857,1756709439019,-480.0,0.00014014,2]
[382686858,1756709439029,-458.75755418,0.00014014,2]
[382686859,1756709439039,-480.0,0.00014014,2]
[382686860,1756709439048,-480.0,0.00014014,2]
[382686861,1756709439058,-480.0,0.00014014,2]
[382686862,1756709439068,-480.0,0.00014014,2]
[382686863,1756709439078,-607.07,0.00014014,2]
[382686864,1756709439087,-480.0,0.00014014,2]
[382686865,1756709439097,-942.49,0.00014014,2]
[382686866,1756709439106,-650.28,0.00014014,2]
[382686867,1756709439116,-480.0,0.00014014,2]
[382686868,1756709439125,-480.0,0.00014014,2]
[382686869,1756709439135,-480.0,0.00014014,2]
[382686870,1756709439145,-480.0,0.00014014,2]
[382686871,1756709439155,-480.0,0.00014014,2]
[382686872,1756709439164,-659.03,0.00014014,2]
[382686873,1756709439174,-525.07,0.00014014,2]
[382686874,1756709439183,-480.0,0.00014014,2]
[382686875,1756709439193,-853.34,0.00014014,2]
[382686876,1756709439203,-3345.49,0.00014014,2]
[382686877,1756709439213,-480.0,0.00014014,2]
[382686878,1756709439223,-826.12,0.00014014,2]
[382686879,1756709439232,-784.34,0.00014014,2]
[382686880,1756709439242,-480.0,0.00014014,2]
[382686881,1756709439251,-480.0,0.00014014,2]
[382686882,1756709439262,-1006.51,0.00014014,2]
[382686883,1756709439271,-480.0,0.00014014,2]
[382686884,1756709439282,-540.36,0.00014014,2]
[382686885,1756709439291,-1306.57,0.00014014,2]
[382686886,1756709439301,-480.0,0.00014014,2]
[382686887,1756709439311,-582.97,0.00014014,2]
[382686888,1756709439320,-480.0,0.00014014,2]
[382686889,1756709439330,-480.0,0.00014014,2]
[382686890,1756709439339,-792.27,0.00014014,2]
[382686891,1756709439349,-480.0,0.00014014,2]
[382686892,1756709439358,-501.45,0.00014014,2]
[382686893,1756709439368,-776.75,0.00014014,2]
[382686894,1756709439378,-4916.94,0.00014014,2]
[382686895,1756709439388,-480.0,0.00014014,2]
[382686896,1756709439397,-500.0,0.00014014,2]
[382686897,1756709439407,-430.04773382,0.00014014,2]
[382686898,1756709439417,-480.0,0.00014014,2]
[382686899,1756709439426,-4658.25,0.00014014,2]
[382686900,1756709439436,-603.93,0.00014014,2]
[382686901,1756709439447,-1062.71,0.00014014,2]
[382686902,1756709439457,-659.53,0.00014014,2]
[382686903,1756709439468,-480.0,0.00014014,2]
[382686904,1756709439478,-1791.74,0.00014014,2]
[382686905,1756709439487,-616.0,0.00014014,2]
[382686906,1756709439498,-480.0,0.00014014,2]
[382686907,1756709439509,-480.0,0.00014014,2]
[382686908,1756709439518,-823.23,0.00014014,2]
[382686910,1756709439527,-480.0,0.00014014,2]
[382686911,1756709439537,-480.0,0.00014014,2]
[382686912,1756709439549,-484.48363425,0.00014014,2]
[382686913,1756709439567,-480.0,0.00014014,2]
[382686914,1756709439577,-4582.19,0.00014014,2]
[382686915,1756709439587,-480.0,0.00014014,2]
[382686916,1756709439600,-480.0,0.00014014,2]
[382686917,1756709439611,-480.0,0.00014014,2]
[382686918,1756709439623,-480.0,0.00014014,2]
[382686919,1756709439633,-1063.23,0.00014014,2]
[382686920,1756709439644,-987.62,0.00014014,2]
[382686921,1756709439654,-480.0,0.00014014,2]
[382686922,1756709439664,-739.54,0.00014014,2]
[382686923,1756709439674,-480.0,0.00014014,2]
[382686925,1756709439684,-480.0,0.00014014,2]
[382686926,1756709439694,-480.0,0.00014015,2]
[382686927,1756709439703,-421.78350037,0.00014015,2]
[382686928,1756709439712,-480.0,0.00014015,2]
[382686929,1756709439723,-480.0,0.00014015,2]
[382686930,1756709439733,-480.0,0.00014015,2]
[382686931,1756709439742,-441.88219619,0.00014015,2]
[382686932,1756709439752,-480.0,0.00014015,2]
[382686933,1756709439761,-480.0,0.00014015,2]
[382686934,1756709439770,-483.77911761,0.00014015,2]